bitfinex/quotes_SOLUSD_20240908
["timestamp","ask_amount","ask_price","bid_price","bid_amount"]
[1725836642966,20.0,130.25,130.16,43.13019836]
[1725836643168,20.0,130.25,130.18,27.88839836]
[1725836644669,28.06186916,130.25,130.18,27.88839836]
[1725836644969,45.0,130.24,130.18,27.88839836]
[1725836645164,20.0,130.25,130.18,27.88839836]
[1725836645870,20.0,130.25,130.18,29.04232034]
[1725836646361,20.0,130.25,130.18,27.88839836]
[1725836646565,21.7484,130.26,130.18,27.88839836]
[1725836647148,45.0,130.25,130.18,27.88839836]
[1725836647566,21.91987127,130.24,130.16,43.13019836]
[1725836647742,20.0,130.24,130.16,43.13019836]
[1725836647943,45.0,130.23,130.16,43.13019836]
[1725836650843,46.92021842,130.23,130.14,34.20619836]
[1725836651049,46.92021842,130.23,130.15,20.0]
[1725836651050,51.1433,130.23,130.15,20.0]
[1725836651649,46.92030338,130.23,130.15,20.0]
[1725836651849,53.06330338,130.23,130.15,20.0]
[1725836652852,51.143,130.23,130.15,20.0]
[1725836653171,51.143,130.23,130.14,27.88839836]
[1725836653369,20.0,130.22,130.14,27.88839836]
[1725836655358,45.0,130.21,130.14,27.88839836]
[1725836655878,46.9204479,130.21,130.14,27.88839836]
[1725836656059,1.9204479,130.2,130.14,27.88839836]
[1725836656260,1.9204479,130.2,130.14,11.13078965]
[1725836656456,1.53316346,130.19,130.09,15.5026]
[1725836656664,52.67836346,130.19,130.1,11.13078965]
[1725836657357,46.53316346,130.19,130.1,11.13078965]
[1725836657558,45.0,130.19,130.12,11.13078965]
[1725836658175,45.0,130.19,130.1,27.83951313]
[1725836658176,51.1448,130.19,130.1,27.83951313]
[1725836658366,51.1448,130.19,130.11,20.0]
[1725836658561,28.06637383,130.18,130.1,27.83951313]
[1725836658782,45.0,130.17,130.1,27.83951313]
[1725836664172,45.0,130.17,130.1,28.99639488]
[1725836664983,45.0,130.17,130.1,27.83951313]
[1725836665368,53.06714991,130.17,130.08,27.83951313]
[1725836665562,53.06714991,130.17,130.09,20.0]
[1725836666570,45.0,130.17,130.09,20.0]
[1725836667000,20.0,130.18,130.1,27.83951313]
[1725836667183,20.0,130.18,130.11,1.1568717]
[1725836667369,20.0,130.18,130.1,28.99638483]
[1725836668386,45.0,130.17,130.1,28.99638483]
[1725836669589,45.0,130.17,130.1,27.83951313]
[1725836671779,15.3584,130.23,130.16,27.83951313]
[1725836673098,16.459,130.27,130.18,27.83951313]
[1725836673278,16.459,130.27,130.16,6.6412]
[1725836673279,16.459,130.27,130.2,27.83951313]
[1725836674670,6.3795,130.28,130.22,27.83951313]
[1725836674891,0.861619,130.29,130.22,27.83951313]
[1725836675282,0.861619,130.29,130.24,27.83951313]
[1725836676377,0.861619,130.29,130.25,1.15228376]
[1725836677074,0.861619,130.29,130.24,28.99155827]
[1725836677605,0.861619,130.29,130.24,27.83951313]
[1725836678370,0.861619,130.29,130.26,27.83951313]
[1725836678780,0.861619,130.29,130.27,1.15125892]
[1725836679503,0.861619,130.29,130.24,27.83951313]
[1725836679674,0.861619,130.29,130.25,20.0]
[1725836680274,0.861619,130.29,130.26,28.99093431]
[1725836680502,0.861619,130.29,130.27,1.1507217]
[1725836680812,0.861619,130.29,130.26,27.83951313]
[1725836682377,0.861619,130.29,130.27,1.15100475]
[1725836682580,0.861619,130.29,130.26,27.83951313]
[1725836683399,0.861619,130.29,130.28,27.83951313]
[1725836684803,0.861619,130.29,130.28,64.29591313]
[1725836685298,266.6241,130.38,130.28,64.29591313]
[1725836685299,260.4,130.38,130.28,64.29591313]
[1725836685506,15.9334,130.39,130.31,27.83951313]
[1725836687179,22.0689,130.39,130.31,27.83951313]
[1725836688009,6.1365,130.37,130.29,54.29381313]
[1725836688305,46.91833858,130.36,130.29,20.0]
[1725836688484,45.0,130.36,130.29,47.83951313]
[1725836688803,45.0,130.37,130.29,47.83951313]
[1725836689183,45.0,130.37,130.29,48.98979587]
[1725836689387,15.9334,130.39,130.31,27.83951313]
[1725836689785,45.0,130.38,130.31,27.83951313]
[1725836690982,45.0,130.38,130.29,47.83951313]
[1725836691889,21.91831422,130.37,130.29,20.0]
[1725836692080,45.0,130.36,130.29,20.0]
[1725836692482,20.0,130.37,130.3,27.83951313]
[1725836692682,20.0,130.38,130.3,27.83951313]
[1725836692879,45.0,130.37,130.3,27.83951313]
[1725836693882,51.1366,130.37,130.28,16.4564]
[1725836694083,51.1366,130.37,130.29,20.0]
[1725836694508,45.0,130.37,130.29,20.0]
[1725836696908,45.0,130.37,130.3,27.83951313]
[1725836697207,20.0,130.38,130.3,27.83951313]
[1725836697505,28.05404302,130.38,130.29,20.0]
[1725836698293,26.1359,130.38,130.29,20.0]
[1725836698605,20.0,130.38,130.29,20.0]
[1725836698810,45.0,130.37,130.29,20.0]
[1725836699106,28.0550587,130.36,130.28,44.29591313]
[1725836699291,45.0,130.35,130.28,44.29591313]
[1725836699492,20.0,130.36,130.29,1.1505318]
[1725836699690,20.0,130.36,130.28,44.29591313]
[1725836699912,20.0,130.37,130.28,44.29591313]
[1725836700081,45.0,130.36,130.28,44.29591313]
[1725836700710,46.91840372,130.36,130.28,44.29591313]
[1725836700883,45.0,130.36,130.28,44.29591313]
[1725836701297,45.0,130.36,130.29,1.1507899]
[1725836701606,45.0,130.36,130.28,44.29591313]
[1725836702393,1.91843069,130.35,130.28,44.29591313]
[1725836702593,45.0,130.36,130.28,44.29591313]
[1725836703212,20.0,130.37,130.3,27.83951313]
[1725836703682,15.9334,130.39,130.32,27.83951313]
[1725836704202,15.9334,130.39,130.31,6.4237]
[1725836704203,17.5791806,130.42,130.34,43.03091313]
[1725836704707,8.91282078,130.43,130.34,43.03091313]
[1725836705383,2.77922078,130.43,130.34,43.03091313]
[1725836705584,0.861619,130.43,130.37,6.3438]
[1725836706505,6.995319,130.43,130.37,6.3438]
[1725836706711,1.91738441,130.42,130.34,49.30001313]
[1725836706892,28.05158441,130.42,130.34,49.30001313]
[1725836707300,21.91738441,130.42,130.34,49.30001313]
[1725836707606,20.0,130.41,130.34,49.30001313]
[1725836707800,46.91768134,130.4,130.34,15.1914]
[1725836708005,1.91791557,130.39,130.34,15.1914]
[1725836708192,1.91791557,130.39,130.32,27.83951313]
[1725836708395,20.0,130.4,130.32,27.83951313]
[1725836708594,45.0,130.39,130.32,27.83951313]
[1725836708798,45.0,130.39,130.3,15.3778]
[1725836708799,46.91797654,130.39,130.3,15.3778]
[1725836709097,20.0,130.38,130.3,15.3778]
[1725836709295,1.91820678,130.37,130.3,43.21731313]
[1725836709492,46.91820678,130.37,130.3,43.21731313]
[1725836709696,46.91820678,130.37,130.3,15.3778]
[1725836709896,45.0,130.37,130.3,15.3778]
[1725836710403,45.0,130.37,130.3,43.21731313]
[1725836710888,20.0,130.38,130.3,43.21731313]
[1725836711089,20.0,130.39,130.32,27.83951313]
[1725836711292,6.1334,130.42,130.32,27.83951313]
[1725836711492,20.0,130.41,130.34,27.83951313]
[1725836711692,6.1334,130.42,130.34,27.83951313]
[1725836712195,0.861619,130.43,130.34,27.83951313]
[1725836712196,1.91746755,130.41,130.34,27.83951313]
[1725836712605,0.861619,130.43,130.34,27.83951313]
[1725836712998,0.861619,130.43,130.35,20.0]
[1725836713519,0.861619,130.43,130.36,27.83951313]
[1725836713822,1.91738223,130.42,130.36,27.83951313]
[1725836715514,45.861619,130.43,130.36,27.83951313]
[1725836715898,1.91738422,130.42,130.35,20.0]
[1725836718207,45.861619,130.43,130.35,20.0]
[1725836719311,45.861619,130.43,130.36,27.83951313]
[1725836720516,1.91738258,130.42,130.34,27.83951313]
[1725836720815,1.91738258,130.42,130.35,20.0]
[1725836721521,47.77906213,130.43,130.36,44.46081313]
[1725836722046,1.91738185,130.42,130.36,44.46081313]
[1725836722336,1.91738185,130.42,130.36,16.6213]
[1725836723211,6.1353,130.4,130.33,22.6733]
[1725836723415,46.91793943,130.39,130.32,27.83951313]
[1725836723601,46.91793943,130.39,130.3,27.83951313]
[1725836723800,53.05333943,130.39,130.3,27.83951313]
[1725836724114,20.0,130.38,130.3,27.83951313]
[1725836724427,20.0,130.38,130.28,22.7076]
[1725836724428,46.91831256,130.37,130.28,50.54711313]
[1725836724726,20.0,130.36,130.3,27.83951313]
[1725836724913,45.0,130.37,130.32,27.83951313]
[1725836725427,21.3365,130.41,130.32,27.83951313]
[1725836725616,65.0,130.4,130.32,27.83951313]
[1725836727124,71.1352,130.4,130.32,27.83951313]
[1725836727339,1.91813006,130.39,130.28,22.7076]
[1725836727520,6.1377,130.34,130.25,50.13261313]
[1725836727715,6.1388,130.32,130.25,50.13261313]
[1725836727933,53.05840864,130.31,130.23,27.83951313]
[1725836728109,20.0,130.3,130.22,22.2931]
[1725836728319,1.91956595,130.29,130.22,22.2931]
[1725836728525,46.91956595,130.29,130.22,22.2931]
[1725836728708,20.0,130.28,130.22,22.2931]
[1725836728916,46.91955923,130.27,130.22,22.2931]
[1725836729119,20.0,130.28,130.22,22.2931]
[1725836729338,21.91937143,130.3,130.22,22.2931]
[1725836729565,45.0,130.29,130.22,22.2931]
[1725836729833,20.0,130.28,130.22,22.2931]
[1725836730510,45.0,130.27,130.22,22.2931]
[1725836730716,1.9196985,130.26,130.18,21.697]
[1725836730930,6.1898,130.31,130.19,20.0]
[1725836730931,21.91985205,130.28,130.19,20.0]
[1725836731225,45.0,130.27,130.19,54.73953368]
[1725836732421,1.91959642,130.26,130.19,54.73953368]
[1725836732852,45.0,130.27,130.19,54.73953368]
[1725836733230,20.0,130.28,130.21,34.73953368]
[1725836733550,14.24872643,130.31,130.21,34.73953368]
[1725836733551,20.0,130.3,130.23,34.73953368]
[1725836734923,20.0,130.32,130.23,34.73953368]
[1725836735123,51.1393,130.31,130.23,34.73953368]
[1725836735329,20.0,130.3,130.23,34.73953368]
[1725836739155,45.0,130.31,130.23,34.73953368]
[1725836739764,45.0,130.31,130.24,22.4031]
[1725836740254,8.05697976,130.34,130.24,22.4031]
[1725836740554,20.0,130.33,130.24,22.4031]
[1725836741545,45.0,130.32,130.24,22.4031]
[1725836742073,46.91900525,130.32,130.24,22.4031]
[1725836742347,26.1396,130.31,130.24,22.4031]
[1725836742541,46.91941414,130.3,130.24,22.4031]
[1725836743753,45.0,130.3,130.24,22.4031]
[1725836744052,26.1396,130.31,130.24,22.4031]
[1725836744053,20.0,130.31,130.24,22.4031]
[1725836744352,20.0,130.33,130.24,57.14263368]
[1725836745359,1.91896115,130.32,130.24,22.4031]
[1725836745733,45.0,130.32,130.24,22.4031]
[1725836748350,13.23845758,130.37,130.28,34.73953368]
[1725836748557,1.918462,130.36,130.28,34.73953368]
[1725836748728,23.98638432,130.37,130.28,34.73953368]
[1725836748928,13.23845758,130.37,130.29,15.2976]
[1725836749356,1.91827456,130.36,130.29,15.2976]
[1725836749537,1.91842174,130.35,130.29,15.2976]
[1725836749937,8.82946474,130.36,130.29,15.2976]
[1725836750654,15.15693319,130.37,130.29,15.2976]
[1725836750848,20.0,130.36,130.3,6.3033]
[1725836751739,20.0,130.38,130.3,6.3033]
[1725836752455,45.0,130.37,130.3,6.3033]
[1725836753044,1.91804799,130.41,130.31,27.75941037]
[1725836753354,10.74751273,130.41,130.31,47.75941037]
[1725836753755,8.82946474,130.41,130.33,27.75941037]
[1725836753951,0.861619,130.43,130.34,6.2413]
[1725836754844,0.861619,130.43,130.35,27.75941037]
[1725836755043,1.91753086,130.42,130.35,27.75941037]
[1725836755243,11.21140587,130.43,130.35,27.75941037]
[1725836756252,11.21140587,130.43,130.34,40.90661342]
[1725836756572,11.21140587,130.43,130.35,20.0]
[1725836756952,1.91736848,130.42,130.35,20.0]
[1725836757151,46.91736848,130.42,130.35,20.0]
[1725836758765,45.0,130.42,130.36,50.30501342]
[1725836758969,1.91736773,130.41,130.36,15.6397]
[1725836759175,46.91736773,130.41,130.36,15.6397]
[1725836760058,1.91759201,130.4,130.36,15.6397]
[1725836760250,1.91767908,130.39,130.36,15.6397]
[1725836760454,45.0,130.41,130.36,15.6397]
[1725836762253,0.861619,130.43,130.36,15.6397]
[1725836762855,2.77898448,130.43,130.36,15.6397]
[1725836763059,1.91736854,130.42,130.36,15.6397]
[1725836764164,65.0,130.42,130.36,15.6397]
[1725836764351,46.53604402,130.41,130.36,15.6397]
[1725836766966,6.135,130.4,130.36,15.6397]
[1725836767162,46.91782021,130.39,130.36,15.6397]
[1725836767478,1.91782021,130.39,130.36,15.6397]
[1725836768288,1.91780161,130.4,130.36,15.6397]
[1725836768460,1.91778159,130.39,130.36,15.6397]
[1725836768980,45.0,130.41,130.36,15.6397]
[1725836769785,1.91762507,130.4,130.36,15.6397]
[1725836769985,1.91762621,130.39,130.36,15.6397]
[1725836770960,45.0,130.41,130.36,15.6397]
[1725836770961,1.91762641,130.4,130.36,15.6397]
[1725836771162,1.91774158,130.39,130.36,15.6397]
[1725836771380,1.91774354,130.4,130.36,15.6397]
[1725836771583,53.0522734,130.41,130.36,15.6397]
[1725836771784,1.91757134,130.4,130.36,15.6397]
[1725836772292,1.91762087,130.39,130.36,15.6397]
[1725836772860,45.0,130.39,130.36,15.6397]
[1725836774501,46.91773944,130.39,130.36,15.6397]
[1725836775302,6.1366,130.37,130.32,15.0357]
[1725836775458,46.9182376,130.36,130.32,15.0357]
[1725836775800,1.91824196,130.35,130.32,15.0357]
[1725836776275,45.0,130.37,130.32,15.0357]
[1725836777394,26.1354,130.4,130.32,15.0357]
[1725836777563,45.0,130.39,130.32,15.0357]
[1725836777762,20.0,130.38,130.32,42.797586]
[1725836777961,45.0,130.39,130.32,42.797586]
[1725836778872,20.0,130.4,130.32,42.797586]
[1725836779198,20.0,130.41,130.33,1.1489428]
[1725836779371,20.0,130.41,130.32,42.797586]
[1725836779885,26.1346,130.41,130.32,42.797586]
[1725836780084,26.1346,130.41,130.33,1.14909514]
[1725836780388,45.0,130.4,130.32,43.94666471]
[1725836780564,45.0,130.4,130.33,1.14907134]
[1725836784785,45.0,130.4,130.32,42.797586]
[1725836785102,20.0,130.41,130.32,43.94615519]
[1725836785263,20.0,130.41,130.34,27.761886]
[1725836785471,0.861619,130.43,130.34,27.761886]
[1725836786695,45.861619,130.43,130.35,15.8122]
[1725836786900,20.0,130.42,130.36,27.761886]
[1725836787080,45.861619,130.43,130.37,6.4182]
[1725836787276,1.91740999,130.42,130.37,6.4182]
[1725836788102,45.861619,130.43,130.37,6.4182]
[1725836788394,6.1375,130.35,130.31,15.7321]
[1725836788595,21.91854223,130.34,130.31,15.7321]
[1725836788907,20.0,130.34,130.31,15.7321]
[1725836789071,46.91858653,130.33,130.29,6.5568]
[1725836789266,1.91873693,130.32,130.29,6.5568]
[1725836790889,20.0,130.36,130.29,6.5568]
[1725836791090,45.0,130.35,130.29,6.5568]
[1725836791282,1.91849933,130.35,130.29,6.5568]
[1725836791675,20.0,130.35,130.29,6.5568]
[1725836791993,45.0,130.34,130.29,6.5568]
[1725836792702,20.0,130.35,130.29,6.5568]
[1725836793003,21.91838064,130.37,130.29,6.5568]
[1725836793201,45.0,130.36,130.29,6.5568]
[1725836793387,20.0,130.35,130.29,6.5568]
[1725836793698,21.91838371,130.35,130.29,6.5568]
[1725836793896,45.0,130.34,130.29,6.5568]
[1725836794398,9.07662925,130.42,130.32,27.761886]
[1725836794628,1.91796177,130.41,130.32,27.761886]
[1725836794973,8.05256177,130.41,130.32,27.761886]
[1725836795395,16.67662646,130.42,130.32,27.761886]
[1725836795607,10.54262646,130.42,130.33,6.5305]
[1725836796794,1.53561943,130.42,130.33,6.5305]
[1725836797003,46.53561943,130.42,130.33,6.5305]
[1725836797801,20.0,130.41,130.33,6.5305]
[1725836798000,45.0,130.4,130.33,6.5305]
[1725836798212,45.0,130.4,130.34,15.6007]
[1725836798378,1.9175969,130.39,130.34,15.6007]
[1725836799510,46.9175679,130.4,130.34,43.362586]
[1725836799682,0.861619,130.43,130.36,27.761886]
[1725836800992,45.861619,130.43,130.36,27.761886]
[1725836801400,45.861619,130.43,130.37,22.1877]
[1725836801581,0.861619,130.43,130.37,22.1877]
[1725836804623,1.91734286,130.42,130.37,22.1877]
[1725836804818,46.91734286,130.42,130.37,22.1877]
[1725836807292,45.0,130.42,130.37,22.1877]
[1725836809093,46.91741428,130.42,130.37,22.1877]
[1725836809643,45.0,130.42,130.37,22.1877]
[1725836811401,1.91741146,130.41,130.37,22.1877]
[1725836811606,45.0,130.41,130.37,22.1877]
[1725836812125,46.91741225,130.42,130.37,22.1877]
[1725836812617,45.0,130.42,130.37,22.1877]
[1725836812922,46.91741553,130.42,130.37,22.1877]
[1725836813102,45.0,130.42,130.37,22.1877]
[1725836813493,46.91742472,130.42,130.37,22.1877]
[1725836815212,45.0,130.42,130.37,22.1877]
[1725836816117,46.91746904,130.42,130.37,22.1877]
[1725836816311,45.0,130.42,130.37,22.1877]
[1725836817020,46.91747246,130.42,130.37,22.1877]
[1725836818095,1.53614279,130.41,130.33,15.0691]
[1725836818298,6.1364,130.37,130.33,15.0691]
[1725836818510,66.91830985,130.36,130.33,15.0691]
[1725836818711,65.0,130.36,130.27,21.5677]
[1725836819022,67.26207453,130.35,130.24,6.4056]
[1725836819196,6.1397,130.3,130.24,6.4056]
[1725836819396,73.059697,130.29,130.24,6.4056]
[1725836819607,28.059697,130.29,130.24,6.4056]
[1725836819897,45.0,130.28,130.24,6.4056]
[1725836820407,45.0,130.28,130.23,16.6062]
[1725836820722,46.91964617,130.28,130.23,16.6062]
[1725836821724,45.0,130.28,130.23,16.6062]
[1725836822094,20.0,130.29,130.23,16.6062]
[1725836822095,1.91934335,130.33,130.23,16.6062]
[1725836822297,1.91907434,130.32,130.23,16.6062]
[1725836822500,1.91907434,130.32,130.23,51.26617724]
[1725836822716,1.91907434,130.32,130.25,34.65997724]
[1725836822895,12.82190877,130.34,130.27,34.65997724]
[1725836823092,12.82190877,130.34,130.28,6.3592]
[1725836824111,12.82190877,130.34,130.29,34.65997724]
[1725836824324,14.71135165,130.39,130.29,34.65997724]
[1725836825021,9.07593986,130.38,130.28,6.3592]
[1725836825412,20.0,130.37,130.29,20.0]
[1725836825922,9.07593986,130.38,130.29,20.0]
[1725836825923,9.07593986,130.38,130.31,34.65997724]
[1725836826106,12.79310366,130.39,130.31,34.65997724]
[1725836826499,12.79310366,130.39,130.33,34.65997724]
[1725836826701,12.79310366,130.39,130.31,34.65997724]
[1725836826911,12.79310366,130.39,130.32,20.0]
[1725836830126,12.79310366,130.39,130.33,34.65997724]
[1725836830432,12.79310366,130.39,130.32,20.0]
[1725836831105,12.79310366,130.39,130.33,34.65997724]
[1725836831412,1.91747617,130.41,130.34,6.5345]
[1725836831618,65.0,130.41,130.34,6.5345]
[1725836832330,0.861619,130.43,130.34,6.5345]
[1725836833112,9.93755886,130.43,130.34,6.5345]
[1725836833437,20.0,130.42,130.34,6.5345]
[1725836833822,9.93755886,130.43,130.35,20.0]
[1725836834132,45.0,130.42,130.35,20.0]
[1725836837233,6.1345,130.41,130.31,6.5042]
[1725836837448,6.1366,130.37,130.3,15.3868]
[1725836837731,21.91842953,130.36,130.3,15.3868]
[1725836837937,57.9434066,130.4,130.3,43.12636527]
[1725836838112,21.91798976,130.39,130.3,15.3868]
[1725836838306,45.0,130.38,130.3,15.3868]
[1725836838617,1.91799209,130.37,130.3,15.3868]
[1725836838815,45.0,130.38,130.3,15.3868]
[1725836838816,46.91808758,130.38,130.3,15.3868]
[1725836840236,21.91807918,130.39,130.3,15.3868]
[1725836840431,45.0,130.38,130.3,15.3868]
[1725836840816,1.91797588,130.37,130.3,15.3868]
[1725836841441,45.0,130.38,130.3,15.3868]
[1725836843236,45.0,130.38,130.3,50.08756924]
[1725836843922,46.91797564,130.39,130.3,50.08756924]
[1725836844126,1.91798035,130.37,130.3,50.08756924]
[1725836844322,45.0,130.38,130.3,50.08756924]
[1725836844744,19.0784066,130.4,130.3,50.08756924]
[1725836844745,45.0,130.39,130.3,50.08756924]
[1725836845035,45.0,130.39,130.32,34.70076924]
[1725836846035,12.9434066,130.4,130.3,50.08756924]
[1725836846237,20.0,130.39,130.3,50.08756924]
[1725836846410,20.0,130.39,130.3,51.23659143]
[1725836846607,12.9434066,130.4,130.3,51.23659143]
[1725836846935,1.91782102,130.39,130.3,50.08756924]
[1725836847333,45.0,130.39,130.3,50.08756924]
[1725836847530,45.0,130.39,130.3,51.23679645]
[1725836847935,45.0,130.39,130.3,50.08756924]
[1725836848413,45.0,130.4,130.3,50.08756924]
[1725836848614,45.0,130.41,130.3,51.23669137]
[1725836848924,13.08508942,130.42,130.34,34.70076924]
[1725836849127,13.08508942,130.42,130.35,15.1116]
[1725836850543,45.0,130.41,130.35,15.1116]
[1725836850841,1.91780787,130.4,130.35,15.1116]
[1725836851045,1.91781173,130.39,130.35,15.1116]
[1725836851237,76.22555337,130.41,130.35,15.1116]
[1725836851431,74.30770097,130.41,130.35,15.1116]
[1725836853739,1.91780942,130.4,130.35,15.1116]
[1725836853924,82.36013947,130.41,130.35,15.1116]
[1725836854121,74.30770097,130.41,130.35,15.1116]
[1725836856046,1.91786734,130.4,130.35,15.1116]
[1725836856728,82.36023188,130.41,130.35,15.1116]
[1725836857230,74.30770097,130.41,130.35,15.1116]
[1725836857838,1.91787852,130.4,130.35,15.1116]
[1725836858147,76.22558289,130.41,130.35,15.1116]
[1725836859030,74.30770097,130.41,130.35,15.1116]
[1725836859626,1.91788043,130.4,130.35,15.1116]
[1725836859939,76.22557648,130.41,130.35,15.1116]
[1725836860525,74.30770097,130.41,130.35,15.1116]
[1725836861063,1.91777419,130.4,130.35,15.1116]
[1725836861340,29.30770097,130.41,130.35,15.1116]
[1725836861341,1.91768214,130.39,130.35,15.1116]
[1725836861938,29.30770097,130.41,130.35,15.1116]
[1725836862443,1.91750316,130.4,130.35,15.1116]
[1725836863221,29.30770097,130.41,130.35,15.1116]
[1725836863531,1.91753705,130.4,130.35,15.1116]
[1725836863725,29.30770097,130.41,130.35,15.1116]
[1725836863925,1.91742313,130.4,130.35,15.1116]
[1725836864125,29.30770097,130.41,130.35,15.1116]
[1725836864438,1.91742354,130.4,130.35,15.1116]
[1725836865948,1.91759926,130.39,130.35,15.1116]
[1725836867038,1.91754865,130.4,130.35,15.1116]
[1725836867464,1.91754897,130.39,130.35,15.1116]
[1725836867831,1.91755837,130.4,130.35,15.1116]
[1725836868060,13.74421668,130.43,130.35,15.1116]
[1725836868359,65.0,130.42,130.35,15.1116]
[1725836869835,66.91745959,130.42,130.35,15.1116]
[1725836870233,76.22516056,130.42,130.35,15.1116]
[1725836872063,66.91745959,130.42,130.35,15.1116]
[1725836872276,73.05145959,130.42,130.35,15.1116]
[1725836872761,66.91785638,130.42,130.35,15.1116]
[1725836872957,65.0,130.42,130.35,15.1116]
[1725836873666,66.91770349,130.42,130.35,15.1116]
[1725836874163,65.0,130.42,130.35,15.1116]
[1725836877266,66.91772209,130.42,130.35,15.1116]
[1725836877851,65.0,130.42,130.35,15.1116]
[1725836878052,66.91759694,130.42,130.35,15.1116]
[1725836878357,21.91759694,130.42,130.35,15.1116]
[1725836879666,45.0,130.41,130.35,15.1116]
[1725836881870,1.91746475,130.4,130.35,15.1116]
[1725836882241,45.0,130.41,130.35,15.1116]
[1725836883544,1.91758497,130.4,130.35,15.1116]
[1725836883750,45.0,130.41,130.35,15.1116]
[1725836885571,45.0,130.41,130.36,11.09789752]
[1725836886476,45.0,130.41,130.39,6.2213]
[1725836886771,45.0,130.42,130.39,6.2213]
[1725836889774,0.861619,130.43,130.4,26.26669752]
[1725836889969,0.861619,130.43,130.42,11.09789752]
[1725836891772,0.861619,130.43,130.4,15.1688]
[1725836901465,8.2735621,130.42,130.36,15.2552]
[1725836901670,66.91760973,130.41,130.36,15.2552]
[1725836901983,81.32567183,130.41,130.33,21.5144]
[1725836902964,73.05210973,130.41,130.33,21.5144]
[1725836903473,66.91760973,130.41,130.33,21.5144]
[1725836903959,65.0,130.41,130.33,21.5144]
[1725836904165,77.94146351,130.41,130.33,32.61229752]
[1725836904761,77.94146351,130.41,130.35,11.09789752]
[1725836906182,77.94146351,130.41,130.34,27.74349993]
[1725836906562,57.94146351,130.41,130.34,27.74349993]
[1725836909368,57.94146351,130.41,130.36,27.74349993]
[1725836910685,12.94146351,130.41,130.38,27.74349993]
[1725836910881,12.94146351,130.41,130.39,16.3575]
[1725836913372,12.94146351,130.41,130.36,15.7972]
[1725836913563,12.94146351,130.41,130.37,27.74349993]
[1725836915072,12.94146351,130.41,130.39,27.74349993]
[1725836915287,0.861619,130.43,130.39,27.74349993]
[1725836915974,0.861619,130.43,130.41,27.74349993]
[1725836916176,0.861619,130.43,130.41,43.04869993]
[1725836916495,0.861619,130.43,130.42,1.14593899]
[1725836916667,0.861619,130.43,130.41,43.04869993]
[1725836916863,0.861619,130.43,130.42,1.14597425]
[1725836917085,0.861619,130.43,130.41,43.04869993]
[1725836921769,0.861619,130.43,130.41,15.3052]
[1725836922995,0.861619,130.43,130.42,27.74349993]
[1725836925801,13.07209413,130.48,130.42,28.88891705]
[1725836925977,13.07209413,130.48,130.46,27.74349993]
[1725836926179,266.872,130.52,130.46,27.74349993]
[1725836926510,6.472,130.52,130.46,27.74349993]
[1725836927380,45.0,130.51,130.46,27.74349993]
[1725836930197,45.0,130.51,130.47,11.07649167]
[1725836931198,46.91591139,130.51,130.47,11.07649167]
[1725836932181,45.0,130.51,130.47,11.07649167]
[1725836933989,45.0,130.51,130.49,11.07649167]
[1725836935305,15.6691,130.54,130.49,11.07649167]
[1725836935802,12.87831026,130.55,130.51,11.07649167]
[1725836936291,14.79388013,130.55,130.47,16.066]
[1725836936490,14.79388013,130.55,130.49,11.07649167]
[1725836937593,12.87831026,130.55,130.49,11.07649167]
[1725836937800,45.0,130.54,130.49,11.07649167]
[1725836943311,45.0,130.54,130.51,11.07649167]
[1725836944015,12.87831026,130.55,130.53,11.07649167]
[1725836944613,37.35485817,130.54,130.44,27.70519167]
[1725836944909,12.93754922,130.53,130.44,27.70519167]
[1725836945112,1.91616688,130.52,130.44,27.70519167]
[1725836945286,14.8537161,130.53,130.44,27.70519167]
[1725836945711,45.0,130.52,130.46,11.07649167]
[1725836947790,1.91589516,130.51,130.46,11.07649167]
[1725836947990,1.91589516,130.51,130.37,20.34835933]
[1725836947991,1.91609125,130.5,130.41,15.1418]
[1725836948212,79.83725568,130.5,130.41,26.21829167]